bitfinex/quotes_ETHUSD_20250328
["timestamp","ask_amount","ask_price","bid_price","bid_amount"]
[1743151111748,3.64417501,1911.2,1910.8,0.7626]
[1743151112863,2.59843778,1911.1,1910.8,0.7626]
[1743151114233,2.59843778,1911.1,1910.8,1.1521164]
[1743151115378,3.64417501,1911.2,1910.8,1.1521164]
[1743151116777,1.04573723,1911.2,1910.8,1.1521164]
[1743151116991,3.64417501,1911.2,1910.8,1.1521164]
[1743151117281,2.59843778,1911.1,1910.8,1.1521164]
[1743151117452,3.64417501,1911.2,1910.8,1.1521164]
[1743151121385,3.64417501,1911.2,1911.0,14.5]
[1743151121594,3.64417501,1911.2,1911.1,1.45]
[1743151122656,3.64417501,1911.2,1911.0,14.5]
[1743151122957,2.59843778,1911.1,1911.0,14.5]
[1743151124068,3.37213778,1911.1,1911.0,14.5]
[1743151124875,0.7737,1911.1,1911.0,14.5]
[1743151126857,3.64417501,1911.2,1911.0,15.2921]
[1743151127094,1.04573723,1911.2,1911.1,1.52921]
[1743151127370,1.04573723,1911.2,1911.0,0.7921]
[1743151127667,1.04573723,1911.2,1911.1,14.5]
[1743151128613,2.59843778,1911.4,1911.1,14.5]
[1743151130362,2.59843778,1911.2,1911.1,14.5]
[1743151131695,6.8318,1911.6,1911.1,14.5]
[1743151132000,2.59843778,1911.4,1911.2,1.45]
[1743151132495,2.59843778,1911.4,1911.0,0.7921]
[1743151132679,2.59843778,1911.2,1911.1,14.5]
[1743151134382,6.05306,1911.6,1911.1,14.5]
[1743151134696,2.59843778,1911.4,1911.1,14.5]
[1743151135601,5.23071,1911.8,1911.1,14.5]
[1743151135602,0.8223,1911.8,1911.2,0.86501631]
[1743151135777,2.64843778,1911.9,1911.2,0.86501631]
[1743151135976,0.09851536,1911.7,1911.4,0.8127]
[1743151136182,2.59843778,1911.7,1911.5,14.552305]
[1743151136501,2.59843778,1911.7,1911.6,1.4552305]
[1743151137587,8.61277778,1911.7,1911.1,0.7763]
[1743151137797,2.59843778,1911.4,1911.2,0.05231432]
[1743151137979,2.59843778,1911.3,1911.1,0.7763]
[1743151138371,5.23072,1911.8,1911.2,0.7865]
[1743151138697,2.59843778,1911.5,1911.2,15.2865]
[1743151138899,2.59843778,1911.5,1911.3,1.52865]
[1743151139675,3.41813778,1911.5,1911.3,1.52865]
[1743151141303,8.64962778,1911.5,1911.3,1.52865]
[1743151141602,8.64962778,1911.5,1911.0,0.7931]
[1743151141807,2.59843778,1911.1,1910.8,5.9459]
[1743151142019,2.59843778,1911.1,1910.8,20.4459]
[1743151142572,2.59843778,1911.1,1910.9,0.05231996]
[1743151142778,2.59843778,1911.1,1910.9,2.10214196]
[1743151143175,2.59843778,1911.0,1910.9,2.049822]
[1743151143506,0.7518,1910.9,1910.5,27.678]
[1743151143676,2.59843778,1910.7,1910.6,14.5]
[1743151144205,2.59843778,1910.8,1910.6,14.5]
[1743151144416,2.59843778,1911.0,1910.7,1.45]
[1743151144599,11.9901,1911.5,1910.8,0.7831]
[1743151144939,2.59843778,1911.3,1910.8,0.7831]
[1743151145295,2.59843778,1911.3,1910.9,0.05231857]
[1743151145508,2.59843778,1911.3,1910.8,0.7831]
[1743151145714,2.59843778,1911.2,1910.8,0.7831]
[1743151146112,0.8251,1911.5,1910.8,0.7831]
[1743151146312,5.2313,1911.6,1910.8,0.7831]
[1743151146313,2.59843778,1911.4,1910.8,0.7831]
[1743151146721,6.05547,1911.7,1910.7,9.605]
[1743151146722,2.59843778,1911.5,1911.0,0.7861]
[1743151147232,2.59843778,1911.5,1911.1,0.05231485]
[1743151147405,2.59843778,1911.4,1911.1,0.05231485]
[1743151148150,2.59843778,1911.4,1911.1,0.05231623]
[1743151148304,2.59843778,1911.4,1911.0,0.7861]
[1743151148504,2.59843778,1911.4,1911.1,0.05231587]
[1743151149439,2.59843778,1911.4,1911.1,0.05231626]
[1743151149622,2.59843778,1911.2,1911.0,0.7861]
[1743151149937,5.2314,1911.6,1911.0,0.7861]
[1743151150128,2.59843778,1911.3,1911.0,0.7861]
[1743151150334,2.59843778,1911.2,1911.0,0.7861]
[1743151150511,2.59843778,1911.3,1911.0,0.7861]
[1743151151526,2.59843778,1911.1,1910.8,0.7705]
[1743151151835,2.59843778,1910.9,1910.7,1.45]
[1743151153040,2.59843778,1910.9,1910.7,1.50232741]
[1743151153327,2.59843778,1911.1,1910.7,1.50232741]
[1743151153511,2.59843778,1911.1,1910.7,4.50232741]
[1743151153716,3.55,1911.8,1910.8,1.27373274]
[1743151153717,5.99915,1911.5,1910.8,1.27373274]
[1743151153933,2.59843778,1911.2,1910.8,1.27373274]
[1743151154398,11.23082,1911.5,1910.8,1.27373274]
[1743151154601,2.59843778,1911.2,1910.9,0.0523185]
[1743151154830,2.59843778,1911.2,1910.8,1.27373274]
[1743151155058,2.59843778,1911.2,1910.9,0.0523209]
[1743151155475,2.59843778,1911.2,1910.8,1.27373274]
[1743151156573,2.59843778,1911.2,1910.9,0.05232059]
[1743151156975,2.59843778,1911.2,1910.8,1.27373274]
[1743151159360,2.59843778,1911.2,1910.9,0.05232074]
[1743151159657,2.59843778,1911.2,1910.8,1.27373274]
[1743151160555,2.59843778,1911.0,1910.8,1.27373274]
[1743151162181,2.59843778,1911.0,1910.8,4.27373274]
[1743151162352,2.59843778,1911.0,1910.9,0.42737327]
[1743151162955,0.8152,1911.2,1910.9,0.42737327]
[1743151162956,2.59843778,1911.2,1910.9,0.42737327]
[1743151163155,2.59843778,1911.2,1911.0,0.05232256]
[1743151163954,2.59843778,1911.2,1911.1,14.5]
[1743151167989,2.59843778,1911.2,1910.8,0.8235]
[1743151168177,2.59843778,1911.2,1910.9,0.05232271]
[1743151168513,2.59843778,1911.0,1910.8,0.8235]
[1743151169099,2.59843778,1911.0,1910.9,14.5]
[1743151169280,2.59843778,1911.0,1910.9,16.03235]
[1743151169785,2.59843778,1911.0,1910.9,14.5]
[1743151169992,7.83129778,1911.0,1910.9,14.5]
[1743151170505,7.83129778,1911.0,1910.6,0.8332]
[1743151170506,13.06442778,1911.0,1910.6,0.8332]
[1743151170798,2.59843778,1910.7,1910.6,0.8332]
[1743151171088,2.59843778,1910.7,1910.6,14.9356542]
[1743151171275,2.59843778,1910.7,1910.6,14.88332]
[1743151173771,2.59843778,1910.8,1910.6,14.88332]
[1743151178393,5.23324,1910.9,1910.6,14.5]
[1743151178394,2.59843778,1910.7,1910.6,14.5]
[1743151179595,7.83211778,1910.7,1910.6,14.5]
[1743151182395,7.83211778,1910.7,1910.2,3.7505]
[1743151182560,2.59843778,1910.6,1910.2,3.7505]
[1743151182963,2.59843778,1910.6,1910.3,14.5]
[1743151183200,2.59843778,1910.5,1910.4,1.45]
[1743151183794,2.59843778,1910.5,1910.4,14.5]
[1743151185125,2.59843778,1910.6,1910.4,14.5]
[1743151187028,1.07101646,1910.7,1910.4,14.5]
[1743151187224,3.66945424,1910.7,1910.4,14.5]
[1743151187813,8.90316424,1910.7,1910.4,14.5]
[1743151188023,8.90316424,1910.7,1910.4,15.95]
[1743151188524,3.66945424,1910.7,1910.4,15.95]
[1743151188731,8.90316424,1910.7,1910.4,15.95]
[1743151188925,2.59843778,1910.5,1910.4,15.95]
[1743151189921,3.39543778,1910.5,1910.4,14.5]
[1743151190132,5.23474,1910.4,1910.0,3.7549]
[1743151190425,5.23474,1910.4,1910.1,0.05234662]
[1743151190426,2.59843778,1910.2,1910.1,0.05234662]
[1743151190723,2.59843778,1910.2,1910.1,14.5]
[1743151191298,2.59843778,1910.2,1910.1,15.95]
[1743151193831,2.59843778,1910.2,1910.1,1.45]
[1743151194028,2.59843778,1910.3,1909.9,0.44553819]
[1743151194232,2.59843778,1910.4,1909.9,0.05234799]
[1743151194400,2.59843778,1910.4,1910.0,14.5]
[1743151194600,1.07232024,1910.3,1910.1,0.05234681]
[1743151194836,1.07232024,1910.3,1910.1,1.50758149]
[1743151195028,1.07232024,1910.3,1910.1,0.05234681]
[1743151195330,1.07232024,1910.3,1910.2,14.5]
[1743151200136,6.06092,1910.8,1910.2,15.3249]
[1743151200439,2.59843778,1910.5,1910.2,15.3249]
[1743151201166,2.59843778,1910.3,1910.0,0.817]
[1743151201517,2.59843778,1910.3,1910.1,14.5]
[1743151201709,7.83331778,1910.3,1910.1,14.5]
[1743151202154,5.2357,1910.0,1909.6,0.7619]
[1743151202439,2.59843778,1909.7,1909.3,8.9657]
[1743151202609,2.59843778,1909.7,1909.4,14.5]
[1743151203410,2.59843778,1909.7,1909.5,0.05236169]
[1743151203609,2.59843778,1909.7,1909.3,5.9657]
[1743151203910,2.59843778,1909.7,1909.4,0.59657]
[1743151204111,2.59843778,1909.7,1909.6,14.5]
[1743151204629,3.62464906,1909.7,1909.6,14.5]
[1743151206308,2.59843778,1909.7,1909.6,14.5]
[1743151206514,2.59843778,1909.9,1909.6,15.291]
[1743151206843,2.59843778,1909.9,1909.7,1.581458]
[1743151207010,3.66253549,1909.9,1909.7,1.5291]
[1743151207210,3.66253549,1909.9,1909.7,1.58145801]
[1743151207421,1.06409771,1909.9,1909.7,2.3297]
[1743151208439,1.06409771,1909.9,1909.7,2.38205651]
[1743151208641,2.59843778,1910.0,1909.7,2.3297]
[1743151209716,3.67177026,1910.0,1909.7,2.3297]
[1743151210118,3.67177026,1910.0,1909.7,0.8006]
[1743151210318,3.67177026,1910.0,1909.8,14.5]
[1743151211730,1.07333248,1910.0,1909.8,14.5]
[1743151212046,1.07091885,1910.1,1909.8,14.5]
[1743151212621,2.59843778,1910.2,1909.9,0.8331]
[1743151213017,3.65309084,1910.2,1909.9,0.8331]
[1743151213260,3.65309084,1910.2,1910.0,14.5]
[1743151213419,3.65309084,1910.2,1910.0,16.03331]
[1743151214352,2.59843778,1910.1,1910.0,14.5]
[1743151215065,3.65309084,1910.2,1910.0,14.5]
[1743151217547,1.05465306,1910.2,1910.0,14.5]
[1743151218638,2.59843778,1910.3,1910.0,14.5]
[1743151218840,0.8091,1910.8,1910.2,0.785]
[1743151219048,2.59843778,1910.9,1910.4,0.8298]
[1743151219465,2.59843778,1910.9,1910.5,14.5]
[1743151219666,2.59843778,1910.9,1910.6,0.71158503]
[1743151219871,7.83159778,1910.9,1910.6,0.71158503]
[1743151220051,3.65748103,1910.7,1910.4,0.8298]
[1743151220464,3.65748103,1910.7,1910.5,14.5]
[1743151220760,9.65770103,1910.7,1910.5,14.5]
[1743151221069,9.65770103,1910.7,1909.9,6.03]
[1743151221070,5.23452,1910.4,1909.9,0.7749]
[1743151221244,2.59843778,1910.2,1909.9,0.7749]
[1743151221578,2.59843778,1910.2,1910.0,14.5]
[1743151222161,2.59843778,1910.2,1910.0,16.02749]
[1743151222352,2.59843778,1910.2,1910.0,14.5]
[1743151222746,7.83352778,1910.2,1910.0,14.5]
[1743151222945,2.59843778,1910.2,1910.0,14.5]
[1743151223251,7.83359778,1910.2,1910.0,14.5]
[1743151224877,2.59843778,1910.2,1910.0,14.5]
[1743151225391,10.38596,1910.6,1910.0,14.5]
[1743151225392,6.05195,1910.5,1910.0,15.95]
[1743151225683,7.83297778,1910.4,1910.1,0.05234956]
[1743151225982,2.59843778,1910.4,1910.0,2.2357]
[1743151226185,2.59843778,1910.4,1910.0,0.7857]
[1743151226482,7.83303778,1910.4,1910.1,14.5]
[1743151226849,2.59843778,1910.4,1910.1,14.5]
[1743151227050,2.59843778,1910.2,1910.1,14.5]
[1743151227248,8.61278778,1910.2,1910.1,14.5]
[1743151227679,3.37773778,1910.2,1910.1,14.5]
[1743151228079,2.59843778,1910.2,1910.1,14.5]
[1743151229285,2.59843778,1910.2,1910.1,15.95]
[1743151229865,6.01385,1910.4,1910.1,15.95]
[1743151230068,2.59843778,1910.3,1910.1,15.95]
[1743151231293,5.23505,1910.2,1910.1,14.5]
[1743151231589,0.19928615,1910.2,1910.1,14.5]
[1743151231759,5.43433615,1910.2,1910.1,14.5]
[1743151234467,5.43433615,1910.2,1909.8,0.7589]
[1743151234666,2.59843778,1910.0,1909.8,0.81125587]
[1743151234897,0.19032401,1909.9,1909.8,0.81125587]
[1743151235507,0.19032401,1909.9,1909.8,15.31125587]
[1743151235680,0.19032401,1909.9,1909.8,16.07005725]
[1743151236277,0.19032401,1909.9,1909.8,14.5]
[1743151236483,5.42619401,1909.9,1909.8,14.5]
[1743151236987,0.19032401,1909.9,1909.8,14.5]
[1743151237802,5.42619401,1909.9,1909.8,14.5]
[1743151238616,0.19032401,1909.9,1909.8,14.5]
[1743151239829,0.19032401,1909.9,1909.4,1.77579855]
[1743151240000,0.19032401,1909.9,1909.5,0.05236068]
[1743151240199,2.59843778,1909.8,1909.4,1.77579855]
[1743151240584,0.19039093,1909.7,1909.4,1.77579855]
[1743151242015,0.19039093,1909.7,1909.5,14.5]
[1743151243002,0.19039093,1909.7,1909.5,16.11883596]
[1743151243201,0.19039093,1909.7,1909.6,0.05236131]
[1743151243399,0.19039093,1909.7,1909.5,16.11883596]
[1743151245089,0.19039093,1909.7,1909.6,0.05236131]
[1743151245899,0.19039093,1909.7,1909.5,16.11883596]
[1743151246097,0.19039093,1909.7,1909.6,1.6118836]
[1743151246302,0.19039093,1909.7,1909.6,2.42054502]
[1743151246641,2.59843778,1910.0,1909.6,2.42054502]
[1743151246791,0.19039093,1909.7,1909.6,2.3681836]
[1743151246993,2.59843778,1910.0,1909.6,2.3681836]
[1743151247191,0.18771427,1909.7,1909.6,2.3681836]
[1743151247717,2.59843778,1910.0,1909.6,2.3681836]
[1743151247939,0.18771427,1909.7,1909.6,2.3681836]
[1743151248110,2.59843778,1910.0,1909.6,2.3681836]
[1743151248291,0.17275023,1909.7,1909.6,2.3681836]
[1743151248486,2.59843778,1910.0,1909.6,2.3681836]
[1743151248792,0.17275023,1909.7,1909.6,2.3681836]
[1743151248991,2.59843778,1910.0,1909.6,2.42053916]
[1743151249521,0.17275023,1909.9,1909.6,2.3681836]
[1743151251109,0.17275023,1909.9,1909.7,0.05235485]
[1743151251794,0.17275023,1909.9,1909.6,2.3681836]
[1743151254095,0.17275023,1909.9,1909.6,5.3681836]
[1743151254293,0.17275023,1909.9,1909.7,0.53681836]
[1743151255421,0.17275023,1909.9,1909.8,14.5]
[1743151261634,0.97725023,1909.9,1909.8,14.5]
[1743151262429,0.97725023,1909.9,1909.4,0.39612855]
[1743151262430,6.21322023,1909.9,1909.4,0.39612855]
[1743151262602,2.59843778,1909.6,1909.3,0.7524]
[1743151262947,2.59843778,1909.6,1909.5,17.5]
[1743151263229,2.59843778,1909.8,1909.5,19.25523645]
[1743151264733,2.59843778,1909.6,1909.5,14.5]
[1743151265741,3.37073778,1909.8,1909.5,14.5]
[1743151266038,2.59843778,1910.1,1909.7,0.8135]
[1743151266199,2.59843778,1910.1,1909.8,0.05235456]
[1743151266621,2.59843778,1909.9,1909.7,0.8135]
[1743151266902,2.59843778,1909.9,1909.7,0.38135]
[1743151267133,6.0456,1910.2,1909.7,0.38135]
[1743151267333,2.59843778,1910.1,1909.8,0.0523554]
[1743151267639,3.40893778,1910.2,1909.8,0.788]
[1743151268433,2.59843778,1910.0,1909.7,0.38135]
[1743151269618,2.59843778,1910.1,1909.7,0.38135]
[1743151269939,0.17154409,1910.0,1909.7,0.38135]
[1743151270150,0.17154409,1910.0,1909.8,0.0523538]
[1743151270502,0.17154409,1910.0,1909.7,0.38135]
[1743151270724,0.17154409,1910.0,1909.8,0.05235392]
[1743151271246,0.17154409,1910.0,1909.7,0.38135]
[1743151271927,0.17154409,1910.0,1909.8,0.05235397]
[1743151272238,0.17154409,1910.0,1909.7,0.38135]
[1743151272442,0.17154409,1910.0,1909.8,0.05235397]
[1743151274038,0.17154409,1910.0,1909.9,0.7739]
[1743151274341,2.59843778,1910.2,1909.9,0.7739]
[1743151274541,3.40283778,1910.4,1910.0,0.05235051]
[1743151274712,2.59843778,1910.3,1909.9,0.7739]
[1743151274912,2.59843778,1910.2,1909.9,0.7739]
[1743151275127,2.59843778,1910.2,1909.9,1.15861828]
[1743151275330,2.59843778,1910.1,1909.7,1.20465]
[1743151275530,2.59843778,1909.9,1909.7,1.20465]
[1743151275927,2.59843778,1910.1,1909.7,1.2570071]
[1743151276646,2.59843778,1910.1,1909.7,1.20465]
[1743151276850,2.59843778,1910.1,1909.8,0.05235577]
[1743151278348,2.59843778,1910.1,1909.8,0.05235576]
[1743151279056,2.59843778,1910.3,1909.6,1.3362]
[1743151279226,2.59843778,1910.3,1909.7,0.7862]
[1743151279427,3.35743778,1910.5,1909.8,3.7862]
[1743151279646,3.35743778,1910.5,1910.0,0.7862]
[1743151280963,2.59843778,1910.5,1910.0,0.7862]
[1743151281975,6.00592,1910.7,1910.0,0.7862]
[1743151281976,0.7722,1910.7,1910.0,0.7862]
[1743151282144,13.84082778,1911.2,1910.4,0.8111]
[1743151282145,7.83129778,1911.0,1910.4,0.8111]
[1743151282346,2.59843778,1911.0,1910.5,0.05233517]
[1743151282551,2.59843778,1910.9,1910.5,0.05233517]
[1743151282757,2.59843778,1911.0,1910.5,0.44471961]
[1743151283067,6.02988,1911.3,1910.6,0.8111]
[1743151283265,2.59843778,1911.2,1910.7,0.05232999]
[1743151283467,2.59843778,1911.1,1910.7,0.05232999]
[1743151283637,2.59843778,1911.2,1910.7,0.05232999]
[1743151284469,2.59843778,1911.2,1910.8,0.8015]
[1743151284845,2.59843778,1911.1,1910.8,0.8015]
[1743151285038,2.74554064,1911.1,1910.8,0.8015]
[1743151285367,2.74554064,1911.1,1910.9,0.0523252]
[1743151285541,2.59843778,1911.0,1910.8,1.18165]
[1743151285744,2.59843778,1911.0,1910.8,0.38015]
[1743151285942,2.74554064,1910.9,1910.6,0.815]
[1743151287174,0.14710286,1910.9,1910.6,0.815]
[1743151287868,2.59843778,1911.1,1910.7,0.05232659]
[1743151288066,0.14710286,1910.8,1910.6,0.815]
[1743151288250,2.59843778,1911.1,1910.6,1.21008664]
[1743151288737,2.74554064,1911.0,1910.6,1.21008664]
[1743151288943,2.59843778,1910.8,1910.6,0.39508664]
[1743151289156,2.59843778,1910.8,1910.4,8.9403]
[1743151289349,0.14710286,1910.7,1910.4,8.9403]
[1743151289550,2.59843778,1910.9,1910.4,8.9403]
[1743151289841,0.14710286,1910.6,1910.5,0.89403]
[1743151290039,2.59843778,1910.9,1910.5,0.89403]
[1743151290246,0.14710286,1910.6,1910.5,0.89403]
[1743151290474,5.98573,1911.2,1910.6,0.8191]
[1743151290773,2.59843778,1911.1,1910.6,0.8191]
[1743151290946,2.59843778,1911.0,1910.6,0.8191]
[1743151291346,2.59843778,1911.1,1910.6,0.8191]
[1743151292178,2.59843778,1911.1,1910.6,1.20596714]
[1743151294170,2.59843778,1911.1,1910.7,0.05232713]
[1743151294669,2.59843778,1911.1,1910.6,1.20596714]
[1743151294858,2.59843778,1911.0,1910.6,1.20596714]
[1743151295059,2.59843778,1910.9,1910.6,1.20596714]
[1743151295255,2.59843778,1910.8,1910.6,1.20596714]
[1743151296681,1.04865771,1910.7,1910.6,1.20596714]
[1743151298898,2.59843778,1911.1,1910.6,1.20596714]
[1743151299060,2.59843778,1911.0,1910.6,1.20596714]
[1743151299484,1.06585569,1910.9,1910.6,1.20596714]
[1743151300083,0.15032553,1910.8,1910.7,0.05233096]
[1743151302397,0.15032553,1910.8,1910.7,14.55233096]
[1743151302690,0.15032553,1910.8,1910.7,16.07582981]
[1743151303990,0.15032553,1910.8,1910.7,14.5]
[1743151304512,2.74876331,1910.8,1910.7,14.5]
[1743151305223,2.74876331,1910.8,1910.6,0.38686714]
[1743151305439,0.8266,1910.6,1910.3,1.573078]
[1743151305579,2.59843778,1910.4,1910.3,1.573078]
[1743151305781,2.74735366,1910.5,1910.1,27.696]
[1743151305996,2.59843778,1910.5,1910.2,2.7696]
[1743151306283,0.14891588,1910.4,1910.2,2.7696]
[1743151306483,2.59843778,1910.5,1910.2,2.7696]
[1743151306684,3.42503778,1910.6,1910.2,2.7696]
[1743151306890,3.42503778,1910.6,1910.2,2.82194293]
[1743151307094,0.14891588,1910.5,1910.3,0.28219429]
[1743151307713,0.14891588,1910.5,1910.3,14.78219429]
[1743151308416,2.74735366,1910.5,1910.3,14.5]
[1743151308618,7.98166366,1910.5,1910.3,14.5]
[1743151308786,2.59843778,1910.4,1910.3,14.5]
[1743151308991,3.65405627,1910.4,1910.3,14.5]
[1743151309193,3.80203221,1910.4,1910.3,14.5]
[1743151309394,3.80203221,1910.4,1910.3,15.95]
[1743151310999,3.80203221,1910.4,1910.3,14.5]
[1743151311506,9.03653221,1910.4,1910.1,0.39030547]
[1743151311716,2.59843778,1910.3,1910.0,0.8171]
[1743151312125,2.59843778,1910.3,1910.2,14.5]
[1743151312628,8.59680778,1910.3,1910.2,14.5]
[1743151312833,0.7636,1910.0,1909.6,0.7719]
[1743151313127,2.59843778,1909.7,1909.4,5.345716]
[1743151313333,2.59843778,1909.8,1909.4,4.04508021]
[1743151313744,2.59843778,1909.8,1909.7,14.5]
[1743151314313,2.59843778,1909.9,1909.7,15.95]
[1743151314519,3.36203778,1910.0,1909.7,15.95]
[1743151315046,2.74540649,1909.9,1909.7,15.95]
[1743151315456,1.05173715,1909.8,1909.7,15.95]
[1743151316031,1.19870586,1909.8,1909.7,15.95]
[1743151318516,1.19870586,1909.8,1909.7,16.7022]
[1743151319748,1.19870586,1909.8,1909.7,15.95]
[1743151320854,3.79714364,1909.8,1909.7,15.95]
[1743151321045,1.19870586,1909.8,1909.7,15.95]
[1743151322159,3.79714364,1909.8,1909.7,15.95]
[1743151322379,3.79714364,1909.8,1909.7,14.5]
[1743151322758,9.03339364,1909.8,1909.4,4.15433746]
[1743151322973,2.59843778,1909.7,1909.4,1.15433746]
[1743151323276,0.14139521,1909.7,1909.5,14.5]
[1743151323424,3.39483778,1909.6,1909.5,14.5]
[1743151323625,8.63152778,1909.6,1909.5,14.5]
[1743151323867,8.76996754,1909.6,1909.5,14.5]
[1743151326246,3.53327754,1909.6,1909.5,14.5]
[1743151326569,2.73687754,1909.6,1909.5,15.95]
[1743151326727,2.73687754,1909.6,1909.5,14.5]
[1743151327429,0.13843976,1909.6,1909.5,15.2625]
[1743151327625,1.05173715,1909.8,1909.5,15.2625]
[1743151327840,0.13843976,1909.6,1909.5,15.2625]
[1743151328040,3.65017493,1909.8,1909.5,15.2625]
[1743151328242,3.65017493,1909.8,1909.6,1.52625]
[1743151328463,1.05173715,1909.8,1909.6,1.52625]
[1743151329979,0.13843976,1909.7,1909.6,1.52625]
[1743151330175,0.13843976,1909.7,1909.5,0.7625]
[1743151330478,0.13843976,1909.7,1909.6,14.5]
[1743151331381,2.73687754,1909.7,1909.6,14.5]
[1743151332089,3.52237754,1909.7,1909.6,14.5]
[1743151332583,0.13843976,1909.7,1909.6,14.5]
[1743151332740,0.13843976,1909.7,1909.6,15.95]
[1743151333336,2.73687754,1909.7,1909.6,15.95]
[1743151334062,0.13843976,1909.7,1909.6,15.95]
[1743151334268,2.73687754,1909.7,1909.6,15.95]
[1743151334773,0.13843976,1909.7,1909.6,15.95]
[1743151334972,2.73687754,1909.7,1909.6,1.45]
[1743151335182,2.73687754,1909.7,1909.3,3.8287]
[1743151335410,2.59843778,1909.7,1909.4,0.27341438]
[1743151335604,2.59843778,1909.7,1909.5,14.5]
[1743151335907,0.13729759,1909.6,1909.5,14.5]
[1743151336570,3.65017493,1909.8,1909.5,14.5]
[1743151336900,0.13729759,1909.7,1909.6,1.45]
[1743151337271,0.13729759,1909.7,1909.4,0.27341438]
[1743151337478,0.13729759,1909.7,1909.5,14.5]
[1743151339315,0.13729759,1909.7,1909.6,8.97396313]
[1743151339491,1.06995754,1910.2,1909.7,0.7796]
[1743151339695,0.8305,1910.4,1909.9,0.7796]
[1743151339902,5.23398,1910.6,1910.0,14.5]
[1743151339903,0.1138804,1910.1,1910.0,14.5]
[1743151340233,0.11663894,1910.1,1910.0,21.42980378]
[1743151340416,2.59843778,1910.1,1910.0,16.28780378]
[1743151340626,2.71507672,1910.1,1910.0,14.5]
[1743151340915,2.71507672,1910.1,1909.7,3.805]
[1743151341115,2.59843778,1910.0,1909.7,3.8573574]
[1743151341301,2.59843778,1910.0,1909.8,14.5]
[1743151341504,2.59843778,1910.1,1909.9,1.45]
[1743151341693,6.02563,1910.4,1909.9,1.45]
[1743151341902,2.59843778,1910.2,1909.7,3.805]
[1743151342286,2.59843778,1910.3,1909.8,14.55235064]
[1743151342487,2.59843778,1910.2,1909.8,14.88576869]
[1743151342730,2.59843778,1910.3,1909.9,0.816]
[1743151342889,3.38953778,1910.4,1910.0,0.05235056]
[1743151343086,2.59843778,1910.4,1910.0,0.05235056]
[1743151343290,2.59843778,1910.4,1910.1,14.5]
[1743151343518,2.59843778,1910.4,1910.1,15.95523506]
[1743151344418,5.98729,1910.6,1910.1,15.95523506]
[1743151344626,2.59843778,1910.4,1910.1,15.95523506]
[1743151345206,2.59843778,1910.5,1910.1,15.95523506]
[1743151345519,2.59843778,1910.4,1910.1,15.95523506]
[1743151345825,2.59843778,1910.4,1910.2,1.59552351]
[1743151346199,2.59843778,1910.3,1910.1,14.5]
[1743151346394,2.59843778,1910.2,1909.9,3.816]
[1743151346599,2.59843778,1910.0,1909.9,0.816]
[1743151346795,2.59843778,1910.0,1909.7,0.8277]
[1743151346996,0.11663894,1909.9,1909.8,14.5]
[1743151347198,2.59843778,1909.9,1909.6,0.40227819]
[1743151347407,0.11798354,1909.8,1909.5,5.9687]
[1743151347737,2.59843778,1909.9,1909.6,14.5]
[1743151347918,0.11798354,1909.7,1909.6,14.5]
[1743151348119,2.59843778,1909.7,1909.6,14.5]
[1743151348327,0.11798354,1909.7,1909.6,14.5]
[1743151348915,0.11798354,1909.7,1909.6,17.5]
[1743151349115,3.41953778,1910.2,1909.6,17.5]
[1743151349116,3.41953778,1910.2,1909.7,3.0]
[1743151349315,0.8211,1910.2,1909.7,3.0]
[1743151349517,10.37465,1910.4,1909.7,3.0]
[1743151349518,0.11798354,1910.1,1909.8,0.7817]
[1743151349912,2.59843778,1910.2,1909.9,14.5]
[1743151350131,0.11798354,1910.0,1909.9,14.90015369]
[1743151350331,2.59843778,1910.2,1909.9,16.46833906]
[1743151350513,0.11798354,1910.0,1909.9,16.46833906]
[1743151350713,2.59843778,1910.0,1909.9,16.06818537]
[1743151350922,2.71642132,1910.0,1909.9,16.06818537]
[1743151352113,2.71642132,1910.0,1909.9,14.5]
[1743151355037,2.71642132,1910.0,1909.7,1.18336227]
[1743151355207,0.11798354,1910.0,1909.7,1.18336227]
[1743151355408,0.11798354,1910.0,1909.8,14.5]
[1743151357017,2.59843778,1910.1,1909.8,14.5]
[1743151357207,2.59843778,1910.1,1909.9,1.45]
[1743151357608,2.59843778,1910.2,1909.7,1.23571843]
[1743151357817,2.59843778,1910.2,1909.8,14.5]
[1743151358942,3.40503778,1910.3,1909.8,14.5]
[1743151359106,2.59843778,1910.2,1909.9,8.895]
[1743151359308,2.59843778,1910.2,1910.0,0.8895]
[1743151359715,2.59843778,1910.2,1910.1,14.5]
[1743151359916,8.66138778,1910.2,1910.1,14.5]
[1743151360115,5.23538,1910.1,1909.7,4.15716227]
[1743151360320,2.59843778,1909.9,1909.7,4.15716227]
[1743151360535,2.59843778,1909.9,1909.8,0.41571623]
[1743151361744,7.94191041,1909.9,1909.5,1.6719554]
[1743151361932,2.59843778,1909.7,1909.5,1.04774396]
[1743151362108,2.59843778,1909.8,1909.5,1.04774396]
[1743151362507,0.10760263,1909.7,1909.5,1.04774396]
[1743151362910,3.38543778,1909.9,1909.5,1.04774396]
[1743151363111,0.10760263,1909.6,1909.5,1.04774396]
[1743151363311,2.59843778,1909.8,1909.5,1.43229591]
[1743151363539,0.10760263,1909.6,1909.5,1.43229591]
[1743151364043,2.59843778,1909.8,1909.5,1.43229591]
[1743151364218,0.10760263,1909.6,1909.5,0.65819591]
[1743151364418,2.59843778,1909.6,1909.3,3.0]
[1743151364640,3.76445907,1909.6,1909.3,3.0]
[1743151364815,1.16602129,1909.6,1909.3,3.05236793]
[1743151365015,3.76445907,1909.6,1909.3,3.0]
[1743151365427,3.76445907,1909.6,1909.4,0.3]
[1743151365612,3.76445907,1909.6,1909.2,6.20940283]
[1743151365813,1.16602129,1909.6,1909.3,0.0523698]
[1743151367112,0.10760263,1909.6,1909.4,0.7602]
[1743151367313,2.59843778,1910.0,1909.5,0.05236118]
[1743151367643,2.59843778,1910.0,1909.4,0.7602]
[1743151367644,3.37003778,1909.8,1909.4,0.7602]
[1743151368025,1.04007177,1909.7,1909.4,0.7602]
[1743151368227,1.14538632,1909.7,1909.4,0.81256446]
[1743151368942,1.14538632,1909.7,1909.4,0.7602]
[1743151369445,1.14538632,1909.7,1909.4,1.13622]
[1743151370121,1.14538632,1909.7,1909.4,0.37602]